fUST/lending_fUST_20250123
["ID","MTS","AMOUNT","RATE_DAILY","PERIOD"]
[350029725,1737580243827,-500.0,0.00019178,2]
[350029726,1737580243837,-500.0,0.00019178,2]
[350029727,1737580243846,-600.42,0.00019178,2]
[350029728,1737580243856,-500.0,0.00019178,2]
[350029729,1737580243866,-500.0,0.00019178,2]
[350029730,1737580243875,-246.24229999,0.00019178,2]
[350029731,1737580243884,-500.0,0.00019178,2]
[350029732,1737580243893,-500.0,0.00019178,2]
[350029733,1737580243902,-500.0,0.00019178,2]
[350029734,1737580243911,-1217.81,0.00019178,2]
[350029735,1737580243920,-500.0,0.00019178,2]
[350029736,1737580243930,-500.0,0.00019178,2]
[350029737,1737580243939,-500.0,0.00019178,2]
[350029738,1737580243948,-500.0,0.00019178,2]
[350029739,1737580243957,-561.69703487,0.00019178,2]
[350029740,1737580243968,-500.0,0.00019178,2]
[350029741,1737580243978,-851.52,0.00019178,2]
[350029742,1737580243987,-500.0,0.00019178,2]
[350029743,1737580243996,-500.0,0.00019178,2]
[350029744,1737580244005,-500.0,0.00019178,2]
[350029745,1737580244015,-500.0,0.00019178,2]
[350029746,1737580244024,-4143.71,0.00019178,2]
[350029747,1737580244034,-500.0,0.00019178,2]
[350029748,1737580244044,-610.92,0.00019178,2]
[350029749,1737580244054,-500.0,0.00019178,2]
[350029750,1737580244063,-403.688225,0.00019178,2]
[350029751,1737580244072,-500.0,0.00019178,2]
[350029752,1737580244082,-500.0,0.00019178,2]
[350029753,1737580244091,-516.73469625,0.00019178,2]
[350029754,1737580244100,-500.0,0.00019178,2]
[350029755,1737580244109,-500.0,0.00019178,2]
[350029756,1737580244118,-1137.58,0.00019178,2]
[350029757,1737580244128,-500.0,0.00019178,2]
[350029758,1737580244138,-500.0,0.00019178,2]
[350029759,1737580244147,-500.0,0.00019178,2]
[350029760,1737580244156,-351.48080276,0.00019178,2]
[350029761,1737580244165,-500.0,0.00019178,2]
[350029762,1737580244174,-397.78,0.00019178,2]
[350029763,1737580244183,-500.0,0.00019178,2]
[350029764,1737580244192,-902.12,0.00019178,2]
[350029765,1737580244202,-500.0,0.00019178,2]
[350029766,1737580244211,-500.0,0.00019178,2]
[350029767,1737580244220,-1741.82,0.00019178,2]
[350029768,1737580244229,-500.0,0.00019178,2]
[350029769,1737580244238,-1543.71,0.00019178,2]
[350029770,1737580244247,-500.0,0.00019178,2]
[350029771,1737580244257,-1404.2,0.00019178,2]
[350029772,1737580244267,-500.0,0.00019178,2]
[350029773,1737580244276,-500.0,0.00019178,2]
[350029774,1737580244285,-505.59482561,0.00019178,2]
[350029775,1737580244294,-382.63270114,0.00019178,2]
[350029776,1737580244303,-500.0,0.00019178,2]
[350029777,1737580244311,-500.0,0.00019178,2]
[350029778,1737580244321,-1158.01,0.00019178,2]
[350029779,1737580244330,-6176.34,0.00019178,2]
[350029780,1737580244339,-500.0,0.00019178,2]
[350029781,1737580244349,-500.0,0.00019178,2]
[350029782,1737580244359,-500.0,0.00019178,2]
[350029783,1737580244368,-500.0,0.00019178,2]
[350029784,1737580244377,-500.0,0.00019178,2]
[350029785,1737580244386,-785.94,0.00019178,2]
[350029786,1737580244395,-500.0,0.00019178,2]
[350029787,1737580244405,-500.0,0.00019178,2]
[350029788,1737580244414,-500.0,0.00019178,2]
[350029789,1737580244423,-500.0,0.00019178,2]
[350029790,1737580244432,-500.0,0.00019178,2]
[350029791,1737580244441,-500.0,0.00019178,2]
[350029792,1737580244451,-500.0,0.00019178,2]
[350029793,1737580244460,-500.0,0.00019178,2]
[350029794,1737580244469,-500.0,0.00019178,2]
[350029795,1737580244478,-500.0,0.00019178,2]
[350029796,1737580244487,-24349.94,0.00019178,2]
[350029797,1737580244497,-300.83155344,0.00019178,2]
[350029798,1737580244506,-500.0,0.00019178,2]
[350029799,1737580244516,-555.18,0.00019178,2]
[350029800,1737580244525,-500.0,0.00019178,2]
[350029801,1737580244534,-500.0,0.00019178,2]
[350029802,1737580244543,-500.0,0.00019178,2]
[350029803,1737580244553,-500.0,0.00019178,2]
[350029804,1737580244562,-500.0,0.00019178,2]
[350029805,1737580244571,-757.65,0.00019178,2]
[350029806,1737580244581,-176.97765602,0.00019178,2]
[350029807,1737580244590,-500.0,0.00019178,2]
[350029808,1737580244599,-500.0,0.00019178,2]
[350029809,1737580244608,-500.0,0.00019178,2]
[350029810,1737580244617,-500.0,0.00019178,2]
[350029811,1737580244626,-847.49,0.00019178,2]
[350029812,1737580244636,-500.0,0.00019178,2]
[350029813,1737580244645,-548.49764011,0.00019198,3]
[350029814,1737580244654,-160.0,0.00019199,2]
[350029815,1737580244664,-38888.88479631,0.000192,15]
[350029836,1737580246260,-531.2054098,0.00018986,2]
[350029837,1737580324103,175.959932,0.00013973,2]
[350030401,1737581436620,-853.9555,0.00017874,2]
[350030409,1737581436682,-2124.5270223,0.00017874,2]
[350030411,1737581436692,-2978.4825223,0.00018055,2]
[350030413,1737581436701,-300.0,0.00018152,2]
[350030415,1737581436711,-8479.47374747,0.00018153,2]
[350030570,1737581438329,-1883.47046116,0.00018153,2]
[350030572,1737581438341,-614.34932417,0.00018153,2]
[350030574,1737581438351,-341.441,0.0001824,2]
[350030576,1737581438361,-465.04485186,0.00018858,2]
[350030578,1737581438370,-242.27089079,0.000189,2]
[350030580,1737581438380,-7888.18708555,0.00018961,2]
[350030583,1737581438399,-1647.34529331,0.00018961,2]
[350030801,1737581440451,-1977.6301833,0.00018961,2]
[350030804,1737581440463,-641.24074726,0.00018961,2]
[350030806,1737581440475,-195.65960989,0.00019078,2]
[350030808,1737581440484,-262.034,0.000191,2]
[350030810,1737581440493,-265.01564285,0.00019178,2]
[350030812,1737581440505,-234.98435715,0.00019178,2]
[350030814,1737581440515,-500.0,0.00019178,2]
[350030815,1737581440524,-246.68158605,0.00019178,2]
[350030816,1737581440544,-253.31841395,0.00019178,2]
[350030817,1737581440553,-500.0,0.00019178,2]
[350030818,1737581440563,-500.0,0.00019178,2]
[350030819,1737581440572,-500.0,0.00019178,2]
[350030820,1737581440581,-500.0,0.00019178,2]
[350030821,1737581440591,-500.0,0.00019178,2]
[350030822,1737581440600,-500.0,0.00019178,2]
[350030823,1737581440609,-500.0,0.00019178,2]
[350030824,1737581440618,-500.0,0.00019178,2]
[350030825,1737581440628,-500.0,0.00019178,2]
[350030826,1737581440637,-500.0,0.00019178,2]
[350030828,1737581440647,-500.0,0.00019178,2]
[350030830,1737581440656,-500.0,0.00019178,2]
[350030832,1737581440666,-500.0,0.00019178,2]
[350030834,1737581440676,-500.0,0.00019178,2]
[350030836,1737581440685,-500.0,0.00019178,2]
[350030838,1737581440694,-500.0,0.00019178,2]
[350030840,1737581440705,-500.0,0.00019178,2]
[350030842,1737581440715,-500.0,0.00019178,2]
[350030844,1737581440725,-643.11,0.00019178,2]
[350030846,1737581440734,-500.0,0.00019178,2]
[350030848,1737581440743,-568.74,0.00019178,2]
[350030850,1737581440752,-500.0,0.00019178,2]
[350030852,1737581440762,-500.0,0.00019178,2]
[350030854,1737581440771,-500.0,0.00019178,2]
[350030856,1737581440780,-500.0,0.00019178,2]
[350030858,1737581440790,-500.0,0.00019178,2]
[350030860,1737581440800,-500.0,0.00019178,2]
[350030862,1737581440809,-500.0,0.00019178,2]
[350030864,1737581440819,-500.0,0.00019178,2]
[350030866,1737581440828,-500.0,0.00019178,2]
[350030868,1737581440838,-500.0,0.00019178,2]
[350030870,1737581440848,-500.0,0.00019178,7]
[350030872,1737581440857,-500.0,0.00019178,2]
[350030874,1737581440867,-500.0,0.00019178,2]
[350030876,1737581440879,-500.0,0.00019178,2]
[350030878,1737581440896,-500.0,0.00019178,2]
[350030880,1737581440906,-542.77,0.00019178,2]
[350030882,1737581440916,-500.0,0.00019178,2]
[350030884,1737581440925,-500.0,0.00019178,2]
[350030887,1737581440934,-404.17624491,0.00019178,2]
[350030888,1737581440943,-500.0,0.00019178,2]
[350030890,1737581440953,-1090.18,0.00019178,2]
[350030893,1737581440962,-500.0,0.00019178,2]
[350030895,1737581440971,-533.58,0.00019178,2]
[350030896,1737581440981,-500.0,0.00019178,2]
[350030898,1737581440990,-103.75482343,0.00019178,2]
[350030901,1737581441003,-1241.93517657,0.00019178,2]
[350030903,1737581441012,-500.0,0.00019178,2]
[350030905,1737581441021,-500.0,0.00019178,2]
[350030907,1737581441030,-508.73379312,0.00019178,2]
[350030909,1737581441041,-3.33103031,0.00019178,2]
[350031099,1737581443219,-496.66896969,0.00019178,2]
[350031100,1737581443228,-529.87327881,0.00019178,2]
[350031101,1737581443281,-631.73672119,0.00019178,2]
[350031102,1737581443291,-500.0,0.00019178,2]
[350031103,1737581443300,-500.0,0.00019178,2]
[350031104,1737581443309,-500.0,0.00019178,2]
[350031105,1737581443319,-500.0,0.00019178,2]
[350031106,1737581443328,-500.0,0.00019178,2]
[350031107,1737581443337,-220.58747932,0.00019178,2]
[350031108,1737581443349,-889.17252068,0.00019178,2]
[350031109,1737581443358,-500.0,0.00019178,2]
[350031110,1737581443367,-298.32747932,0.00019178,2]
[350031311,1737581446170,-5725.54252068,0.00019178,2]
[350031313,1737581446181,-500.0,0.00019178,2]
[350031315,1737581446190,-500.0,0.00019178,2]
[350031317,1737581446200,-532.05,0.00019178,2]
[350031319,1737581446209,-500.0,0.00019178,2]
[350031321,1737581446218,-12795.03950899,0.00019178,2]
[350031911,1737581509455,175.370471,0.00013973,2]
[350031919,1737582561026,174.818799,0.00013973,2]
[350031956,1737582632654,-161.525553,0.00017592,2]
[350031957,1737582632664,-161.525553,0.0001795,2]
[350031958,1737582632673,-300.0,0.00018115,2]
[350031959,1737582632683,-3571.57061143,0.00018116,2]
[350031960,1737582632724,-4379.16542647,0.00018116,2]
[350031961,1737582632735,-10162.1433631,0.00018116,2]
[350031962,1737582632745,-329.50663689,0.0001824,2]
[350031991,1737582638358,-21.95436311,0.0001824,2]
[350031993,1737582638368,-414.94013362,0.000189,2]
[350031995,1737582638377,-500.0,0.00018903,2]
[350031997,1737582638386,-988.04574016,0.00018935,2]
[350032006,1737582638486,-4259.98286914,0.00018935,2]
[350032025,1737582640451,-3987.13098901,0.00018935,2]
[350032026,1737582640463,-353.5775999,0.00019,2]
[350032027,1737582640474,-246.10832645,0.00019073,2]
[350032028,1737582640487,-195.65960988,0.00019078,2]
[350032029,1737582640500,-155.76,0.00019078,2]
[350032030,1737582640512,-500.0,0.00019173,2]
[350032031,1737582640534,-225.16824083,0.00019173,2]
[350032032,1737582640545,-500.0,0.00019173,2]
[350032033,1737582640556,-500.0,0.00019173,2]
[350032034,1737582640566,-500.0,0.00019173,2]
[350032035,1737582640576,-500.0,0.00019173,2]
[350032036,1737582640586,-500.0,0.00019173,2]
[350032037,1737582640596,-500.0,0.00019173,2]
[350032038,1737582640606,-500.0,0.00019173,2]
[350032039,1737582640616,-500.72203806,0.00019173,2]
[350032040,1737582640626,-500.0,0.00019173,2]
[350032041,1737582640636,-500.0,0.00019173,2]
[350032042,1737582640646,-500.0,0.00019173,2]
[350032043,1737582640657,-500.0,0.00019173,2]
[350032044,1737582640667,-500.0,0.00019173,2]
[350032045,1737582640677,-306.90318233,0.00019173,2]
[350032046,1737582640690,-193.09681767,0.00019173,2]
[350032047,1737582640700,-500.0,0.00019173,2]
[350032048,1737582640712,-576.36693469,0.00019173,2]
[350032049,1737582640722,-412.72770489,0.00019177,2]
[350032050,1737582640732,-237.59298615,0.00019177,2]
[350032051,1737582640741,-500.0,0.00019177,2]
[350032052,1737582640751,-500.0,0.00019177,2]
[350032053,1737582640761,-500.0,0.00019177,2]
[350032054,1737582640770,-500.0,0.00019177,2]
[350032055,1737582640780,-500.0,0.00019177,2]
[350032056,1737582640789,-500.0,0.00019177,2]
[350032057,1737582640799,-500.0,0.00019177,2]
[350032058,1737582640809,-235.36337414,0.00019177,2]
[350032059,1737582640819,-595.86331641,0.00019177,2]
[350032060,1737582640828,-500.0,0.00019177,2]
[350032061,1737582640838,-500.0,0.00019177,2]
[350032062,1737582640848,-500.0,0.00019177,2]
[350032063,1737582640858,-500.0,0.00019177,2]
[350032064,1737582640868,-500.0,0.00019177,2]
[350032065,1737582640878,-623.87843833,0.00019177,2]
[350032066,1737582640887,-211.80534596,0.00019177,2]
[350032067,1737582640897,-23048.88702902,0.00019178,5]
[350032068,1737582640908,-5111.45759393,0.00019178,5]
[350032069,1737582640918,-500.0,0.00019178,2]
[350032070,1737582640928,-308.26318901,0.00019178,2]
[350032071,1737582640940,-191.73681099,0.00019178,2]
[350032072,1737582640950,-151.0,0.00019178,2]
[350032073,1737582640961,-151.0,0.00019178,2]
[350032074,1737582640971,-151.0,0.00019178,2]
[350032075,1737582640980,-151.0,0.00019178,2]
[350032076,1737582640990,-500.0,0.00019178,2]
[350032077,1737582641000,-151.738075,0.00019178,2]
[350032078,1737582641009,-130.14771149,0.00019178,2]
[350032079,1737582641022,-369.85228851,0.00019178,2]
[350032080,1737582641032,-500.0,0.00019178,2]
[350032081,1737582641042,-151.0,0.00019178,2]
[350032082,1737582641052,-151.0,0.00019178,2]
[350032083,1737582641062,-500.0,0.00019178,2]
[350032084,1737582641071,-500.0,0.00019178,2]
[350032085,1737582641080,-500.0,0.00019178,2]
[350032086,1737582641090,-500.0,0.00019178,2]
[350032087,1737582641099,-500.0,0.00019178,2]
[350032088,1737582641108,-151.0,0.00019178,2]
[350032089,1737582641118,-151.0,0.00019178,2]
[350032090,1737582641127,-500.0,0.00019178,2]
[350032091,1737582641137,-151.0,0.00019178,2]
[350032092,1737582641146,-151.0,0.00019178,2]
[350032093,1737582641156,-151.0,0.00019178,2]
[350032094,1737582641165,-151.0,0.00019178,2]
[350032095,1737582641175,-501.63229707,0.00019178,2]
[350032096,1737582641184,-500.0,0.00019178,2]
[350032097,1737582641194,-500.0,0.00019178,2]
[350032098,1737582641203,-151.31806658,0.00019178,2]
[350032099,1737582641214,-151.0,0.00019178,2]
[350032100,1737582641223,-151.0,0.00019178,2]
[350032101,1737582641232,-151.0,0.00019178,2]
[350032102,1737582641242,-500.0,0.00019178,2]
[350032103,1737582641251,-151.0,0.00019178,2]
[350032104,1737582641261,-228.492434,0.00019178,2]
[350032105,1737582641270,-151.0,0.00019178,2]
[350032106,1737582641279,-500.0,0.00019178,2]
[350032107,1737582641289,-500.0,0.00019178,2]
[350032108,1737582641299,-500.0,0.00019178,2]
[350032109,1737582641309,-500.0,0.00019178,2]
[350032110,1737582641319,-151.0,0.00019178,2]
[350032111,1737582641328,-151.0,0.00019178,2]
[350032112,1737582641338,-151.0,0.00019178,2]
[350032113,1737582641348,-500.0,0.00019178,2]
[350032114,1737582641357,-151.0,0.00019178,2]
[350032115,1737582641369,-500.0,0.00019178,2]
[350032116,1737582641378,-500.0,0.00019178,2]
[350032117,1737582641388,-500.0,0.00019178,2]
[350032118,1737582641397,-500.0,0.00019178,2]
[350032119,1737582641407,-518.00718012,0.00019178,2]
[350032120,1737582641416,-500.0,0.00019178,2]
[350032121,1737582641426,-500.0,0.00019178,2]
[350032122,1737582641436,-500.0,0.00019178,2]
[350032123,1737582641446,-680.64,0.00019178,2]
[350032124,1737582641455,-506.56164683,0.00019178,2]
[350032125,1737582641466,-500.0,0.00019178,2]
[350032126,1737582641475,-151.0,0.00019178,2]
[350032127,1737582641487,-500.0,0.00019178,2]
[350032128,1737582641497,-500.0,0.00019178,2]
[350032129,1737582641507,-609.37,0.00019178,2]
[350032130,1737582641516,-151.9016,0.00019178,2]
[350032131,1737582641525,-500.0,0.00019178,2]
[350032132,1737582641535,-500.0,0.00019178,2]
[350032133,1737582641545,-151.0,0.00019178,2]
[350032134,1737582641554,-151.0,0.00019178,2]
[350032135,1737582641565,-151.0,0.00019178,2]
[350032136,1737582641575,-151.0,0.00019178,2]
[350032137,1737582641584,-179.176531,0.00019178,2]
[350032138,1737582641594,-179.176531,0.00019178,2]
[350032139,1737582641604,-179.176531,0.00019178,2]
[350032140,1737582641614,-179.176531,0.00019178,2]
[350032141,1737582641624,-151.0,0.00019178,2]
[350032142,1737582641633,-151.0,0.00019178,2]
[350032143,1737582641643,-151.0,0.00019178,2]
[350032144,1737582641654,-171.955112,0.00019178,2]
[350032145,1737582641664,-151.0,0.00019178,2]
[350032146,1737582641675,-151.0,0.00019178,2]
[350032147,1737582641685,-151.0,0.00019178,2]
[350032148,1737582641695,-179.176531,0.00019178,2]
[350032149,1737582641705,-179.176531,0.00019178,2]
[350032150,1737582641716,-179.176531,0.00019178,2]
[350032151,1737582641727,-179.176531,0.00019178,2]
[350032152,1737582641737,-500.0,0.00019178,2]
[350032153,1737582641746,-500.0,0.00019178,2]
[350032154,1737582641756,-151.0,0.00019178,2]
[350032155,1737582641767,-500.0,0.00019178,2]
[350032156,1737582641896,-237.79748152,0.00019178,2]
[350032157,1737582641907,-151.0,0.00019178,2]
[350032158,1737582641916,-151.0,0.00019178,2]
[350032159,1737582641925,-151.0,0.00019178,2]
[350032160,1737582641935,-500.0,0.00019178,2]
[350032161,1737582641944,-151.0,0.00019178,2]
[350032162,1737582641953,-151.0,0.00019178,2]
[350032163,1737582641962,-500.0,0.00019178,2]
[350032164,1737582641972,-500.0,0.00019178,2]
[350032165,1737582641981,-151.0,0.00019178,2]
[350032166,1737582641990,-151.0,0.00019178,2]
[350032167,1737582641999,-500.0,0.00019178,2]
[350032168,1737582642008,-151.0,0.00019178,2]
[350032169,1737582642017,-151.0,0.00019178,2]
[350032170,1737582642027,-151.0,0.00019178,2]
[350032171,1737582642036,-500.0,0.00019178,2]
[350032172,1737582642046,-561.82,0.00019178,2]
[350032173,1737582642055,-500.0,0.00019178,2]
[350032174,1737582642064,-500.0,0.00019178,2]
[350032175,1737582642074,-500.0,0.00019178,2]
[350032176,1737582642083,-500.0,0.00019178,2]
[350032177,1737582642092,-500.0,0.00019178,2]
[350032178,1737582642102,-500.0,0.00019178,2]
[350032179,1737582642111,-151.0,0.00019178,2]
[350032180,1737582642120,-151.0,0.00019178,2]
[350032181,1737582642130,-151.0,0.00019178,2]
[350032182,1737582642139,-151.0,0.00019178,2]
[350032183,1737582642148,-151.0,0.00019178,2]
[350032184,1737582642158,-500.0,0.00019178,2]
[350032185,1737582642167,-500.0,0.00019178,2]
[350032186,1737582642176,-500.0,0.00019178,2]
[350032187,1737582642185,-500.0,0.00019178,2]
[350032188,1737582642194,-500.0,0.00019178,2]
[350032189,1737582642203,-151.0,0.00019178,2]
[350032190,1737582642212,-151.0,0.00019178,2]
[350032191,1737582642222,-500.0,0.00019178,2]
[350032192,1737582642231,-500.0,0.00019178,2]
[350032193,1737582642240,-276.52394098,0.00019178,2]
[350032194,1737582642250,-500.0,0.00019178,2]
[350032195,1737582642259,-500.0,0.00019178,2]
[350032196,1737582642268,-500.0,0.00019178,2]
[350032197,1737582642277,-151.0,0.00019178,2]
[350032198,1737582642287,-151.0,0.00019178,2]
[350032199,1737582642296,-151.0,0.00019178,2]
[350032200,1737582642305,-151.0,0.00019178,2]
[350032201,1737582642315,-151.0,0.00019178,2]
[350032202,1737582642324,-500.0,0.00019178,2]
[350032203,1737582642333,-214.43047,0.00019178,2]
[350032204,1737582642343,-500.0,0.00019178,2]
[350032205,1737582642352,-596.86844711,0.00019178,2]
[350032206,1737582642361,-500.0,0.00019178,2]
[350032207,1737582642370,-500.0,0.00019178,2]
[350032208,1737582642379,-503.08655204,0.00019178,2]
[350032209,1737582642388,-533.264466,0.00019178,2]
[350032210,1737582642398,-500.0,0.00019178,2]
[350032211,1737582642408,-533.264466,0.00019178,2]
[350032212,1737582642417,-533.264466,0.00019178,2]
[350032213,1737582642426,-533.264466,0.00019178,2]
[350032214,1737582642436,-533.264466,0.00019178,2]
[350032215,1737582642445,-161.743277,0.00019178,2]
[350032216,1737582642455,-533.264466,0.00019178,2]
[350032217,1737582642464,-533.264466,0.00019178,2]
[350032218,1737582642474,-533.264466,0.00019178,2]
[350032219,1737582642487,-533.264466,0.00019178,2]
[350032220,1737582642496,-533.264466,0.00019178,2]
[350032221,1737582642504,-500.0,0.00019178,2]
[350032222,1737582642514,-500.0,0.00019178,2]
[350032223,1737582642523,-500.0,0.00019178,2]
[350032224,1737582642532,-500.0,0.00019178,2]
[350032225,1737582642541,-500.0,0.00019178,2]
[350032226,1737582642551,-500.0,0.00019178,2]
[350032227,1737582642562,-500.0,0.00019178,2]
[350032228,1737582642572,-310.71504785,0.00019178,2]
[350032229,1737582642581,-1232.45,0.00019178,2]
[350032230,1737582642591,-500.0,0.00019178,2]
[350032231,1737582642600,-6204.43,0.00019178,2]
[350032232,1737582642610,-500.0,0.00019178,2]
[350032233,1737582642619,-500.0,0.00019178,2]
[350032234,1737582642628,-500.0,0.00019178,2]
[350032235,1737582642637,-170.898322,0.00019178,2]
[350032236,1737582642646,-170.898322,0.00019178,2]
[350032237,1737582642656,-170.898322,0.00019178,2]
[350032238,1737582642665,-170.898322,0.00019178,2]
[350032239,1737582642674,-577.61,0.00019178,2]
[350032240,1737582642684,-170.898322,0.00019178,2]
[350032241,1737582642693,-500.0,0.00019178,2]
[350032242,1737582642702,-170.898322,0.00019178,2]
[350032243,1737582642711,-170.898322,0.00019178,2]
[350032244,1737582642722,-170.898322,0.00019178,2]
[350032245,1737582642731,-170.898322,0.00019178,2]
[350032246,1737582642741,-500.0,0.00019178,2]
[350032247,1737582642750,-170.898322,0.00019178,2]
[350032248,1737582642759,-500.0,0.00019178,2]
[350032249,1737582642769,-602.52557701,0.00019178,2]
[350032250,1737582642778,-500.0,0.00019178,2]
[350032251,1737582642787,-500.0,0.00019178,2]
[350032252,1737582642796,-326.256011,0.00019178,2]
[350032253,1737582642806,-326.256011,0.00019178,2]
[350032254,1737582642815,-326.256011,0.00019178,2]
[350032255,1737582642824,-326.256011,0.00019178,2]
[350032256,1737582642834,-326.256011,0.00019178,2]
[350032257,1737582642843,-572.38,0.00019178,2]
[350032258,1737582642852,-326.256011,0.00019178,2]
[350032259,1737582642862,-326.256011,0.00019178,2]
[350032260,1737582642871,-326.256011,0.00019178,2]
[350032261,1737582642881,-326.256011,0.00019178,2]
[350032262,1737582642890,-326.256011,0.00019178,2]
[350032263,1737582642900,-500.0,0.00019178,2]
[350032264,1737582642909,-500.0,0.00019178,2]
[350032265,1737582642918,-500.0,0.00019178,2]
[350032266,1737582642928,-500.0,0.00019178,2]
[350032267,1737582642937,-766.1,0.00019178,2]
[350032268,1737582642946,-359.69034323,0.00019178,2]
[350032270,1737582642955,-500.0,0.00019178,2]
[350032271,1737582642966,-500.0,0.00019178,2]
[350032272,1737582642975,-500.0,0.00019178,2]
[350032273,1737582642984,-1713.604888,0.00019178,2]
[350032274,1737582642993,-1713.604888,0.00019178,2]
[350032275,1737582643003,-1552.29,0.00019178,2]
[350032276,1737582643012,-1713.604888,0.00019178,2]
[350032277,1737582643021,-1713.604888,0.00019178,2]
[350032278,1737582643030,-1713.604888,0.00019178,2]
[350032279,1737582643040,-500.0,0.00019178,2]
[350032280,1737582643050,-1713.604888,0.00019178,2]
[350032281,1737582643059,-1713.604888,0.00019178,2]
[350032282,1737582643068,-500.0,0.00019178,2]
[350032283,1737582643078,-1713.604888,0.00019178,2]
[350032284,1737582643087,-1713.604888,0.00019178,2]
[350032285,1737582643096,-500.0,0.00019178,2]
[350032286,1737582643106,-1713.604888,0.00019178,2]
[350032287,1737582643115,-157.431518,0.00019178,2]
[350032288,1737582643124,-326.525821,0.00019178,2]
[350032289,1737582643133,-500.0,0.00019178,2]
[350032290,1737582643142,-326.525821,0.00019178,2]
[350032291,1737582643151,-326.525821,0.00019178,2]
[350032292,1737582643160,-500.0,0.00019178,2]
[350032293,1737582643170,-326.525821,0.00019178,2]
[350032294,1737582643179,-326.525821,0.00019178,2]
[350032295,1737582643188,-500.0,0.00019178,2]
[350032296,1737582643197,-500.0,0.00019178,2]
[350032297,1737582643206,-500.0,0.00019178,2]
[350032298,1737582643216,-326.525821,0.00019178,2]
[350032299,1737582643225,-151.0,0.00019178,2]
[350032300,1737582643234,-326.525821,0.00019178,2]
[350032301,1737582643243,-151.0,0.00019178,2]
[350032302,1737582643252,-326.525821,0.00019178,2]
[350032303,1737582643261,-151.0,0.00019178,2]
[350032304,1737582643270,-500.0,0.00019178,2]
[350032305,1737582643279,-151.0,0.00019178,2]
[350032306,1737582643289,-773.48,0.00019178,2]
[350032308,1737582643298,-326.525821,0.00019178,2]
[350032310,1737582643307,-151.0,0.00019178,2]
[350032312,1737582643316,-326.525821,0.00019178,2]
[350032314,1737582643325,-500.0,0.00019178,2]
[350032315,1737582643334,-151.427026,0.00019178,2]
[350032317,1737582643343,-500.0,0.00019178,2]
[350032319,1737582643354,-500.0,0.00019178,2]
[350032321,1737582643363,-153.994862,0.00019178,2]
[350032323,1737582643372,-688.05,0.00019178,2]
[350032325,1737582643382,-478.84,0.00019178,2]
[350032327,1737582643392,-23555.29,0.00019178,2]
[350032329,1737582643400,-1355.02,0.00019178,2]
[350032331,1737582643410,-2439.92,0.00019178,2]
[350032333,1737582643419,-500.0,0.00019178,2]
[350032335,1737582643428,-1454.386226,0.00019178,2]
[350032337,1737582643437,-1454.386226,0.00019178,2]
[350032339,1737582643446,-1454.386226,0.00019178,2]
[350032341,1737582643456,-312.348874,0.00019178,2]
[350032343,1737582643465,-1454.386226,0.00019178,2]
[350032345,1737582643475,-312.348874,0.00019178,2]
[350032347,1737582643488,-1454.386226,0.00019178,2]
[350032349,1737582643497,-312.348874,0.00019178,2]